[Event "IM Marmaris Karia VIII 2019"]
[Site "Marmaris"]
[Date "2019.07.29"]
[Round "7.3"]
[White "Karaoglan, Doruk"]
[Black "Odeev, Handszar"]
[Result "1-0"]
[ECO "B25"]
[WhiteElo "2278"]
[BlackElo "2360"]
[Annotator "NA"]
[PlyCount "89"]
[EventDate "2019.07.29"]
[EventType "schev"]
[EventCountry "TUR"]
[SourceTitle "playchess.com"]
[Source "ChessBase"]
[SourceQuality "1"]
[TimeControl "5400+30"]

1. e4 {[%emt 0:00:30]} c5 {[%emt 0:17:30]} 2. Nc3 {[%emt 0:00:00]} d6 {[%emt 0:03:30]} 3. g3 {[%emt 0:00:00]} g6 {[%emt 0:00:30]} 4. Bg2 {[%emt 0:00:00]} Bg7 {[%emt 0:00:30]} 5. d3 {[%emt 0:00:00]} Nc6 {[%emt 0:01:30]} 6. f4 {[%emt 0:00:00]} e6 {[%emt 0:00:30]} 7. Nf3 {[%emt 0:00:00]} Nge7 {[%emt 0:00:00]} 8. O-O {[%emt 0:00:30]} O-O {[%emt 0:00:00]} 9. Be3 {[%emt 0:00:00]} b6 {[%emt 0:00:00]} 10. Bf2 {[%emt 0:00:00]} e5 {[%emt 0:03:00]} 11. fxe5 {[%emt 0:21:30]} dxe5 {[%emt 0:00:30]} 12. Nd5 {[%emt 0:04:30]} Nxd5 {[%emt 0:33:30]} 13. exd5 {[%emt 0:00:30]} Nd4 {[%emt 0:00:00]} 14. c3 {[%emt 0:13:30]} Nxf3+ {[%emt 0:00:00]} 15. Qxf3 {[%emt 0:01:30]} f5 {[%emt 0:02:30]} 16. Rfe1 {[%emt 0:17:30]} Qd6 {[%emt 0:01:30]} 17. Qe2 {[%emt 0:01:30]} Bd7 {[%emt 0:00:30]} 18. Rab1 {[%emt 0:02:30]} Rae8 {[%emt 0:03:30]} 19. c4 {[%emt 0:01:30]} a5 {[%emt 0:14:22]} 20. b3 {[%emt 0:02:30]} h5 {[%emt 0:01:19]} 21. a3 {[%emt 0:10:30]} e4 {[%emt 0:04:37]} 22. dxe4 {[%emt 0:01:30]} fxe4 {[%emt 0:00:02]} 23. Be3 {[%emt 0:01:30]} Bg4 {[%emt 0:02:02]} 24. Qd2 {[%emt 0:01:04]} Be5 {[%emt 0:01:17]} 25. b4 {[%emt 0:04:31]} axb4 {[%emt 0:00:22]} 26. axb4 {[%emt 0:00:01]} Bf3 {[%emt 0:04:08]} 27. bxc5 {[%emt 0:00:14]} bxc5 {[%emt 0:00:01]} 28. Rb5 {[%emt 0:03:20]} Rc8 {[%emt 0:00:01]} 29. Reb1 {[%emt 0:03:03]} Bxg2 {[%emt 0:06:33]} 30. Kxg2 {[%emt 0:06:49]} Qe7 {[%emt 0:00:43]} 31. Rb6 {[%emt 0:01:35]} Bd6 {[%emt 0:00:09]} 32. Qc3 {[%emt 0:01:36]} h4 {[%emt 0:00:48]} 33. Rb7 {[%emt 0:00:22]} Rc7 {[%emt 0:00:14]} 34. Rb8 {[%emt 0:01:06]} hxg3 {[%emt 0:00:48]} 35. Bh6 {[%emt 0:01:13]} Rd8 {[%emt 0:00:32]} 36. Qg7+ {[%emt 0:00:35]} Qxg7 {[%emt 0:00:06]} 37. Rxd8+ {[%emt 0:00:03]} Bf8 {[%emt 0:00:54]} 38. Bxg7 {[%emt 0:00:12]} Kxg7 {[%emt 0:00:16]} 39. hxg3 {[%emt 0:00:47]} Ra7 {[%emt 0:00:35]} 40. Re1 {[%emt 0:00:44]} Be7 {[%emt 0:00:30]} 41. Rc8 {[%emt 0:00:12]} Bd6 {[%emt 0:00:38]} 42. Rc6 {[%emt 0:00:25]} Bf8 {[%emt 0:00:32]} 43. Rxe4 {[%emt 0:00:08]} Kh7 {[%emt 0:00:28]} 44. Re8 {[%emt 0:00:47]} Rf7 {[%emt 0:00:32]} 45. Ree6 {[%emt 0:00:53]} 1-0

[Event "IM Marmaris Karia VIII 2019"]
[Site "Marmaris"]
[Date "2019.07.29"]
[Round "7.4"]
[White "Yazici, Ugur Doga"]
[Black "Rzayev, Bahruz"]
[Result "0-1"]
[ECO "C60"]
[WhiteElo "2143"]
[BlackElo "2340"]
[Annotator "NA"]
[PlyCount "78"]
[EventDate "2019.07.29"]
[EventType "schev"]
[EventCountry "TUR"]
[SourceTitle "playchess.com"]
[Source "ChessBase"]
[SourceQuality "1"]
[TimeControl "5400+30"]

1. e4 {[%emt 0:00:30]} e5 {[%emt 0:00:30]} 2. Nf3 {[%emt 0:00:00]} Nc6 {[%emt 0:00:00]} 3. Bb5 {[%emt 0:00:00]} Nge7 {[%emt 0:00:00]} 4. Nc3 {[%emt 0:00:30]} a6 {[%emt 0:00:30]} 5. Bc4 {[%emt 0:03:30]} Ng6 {[%emt 0:03:30]} 6. d4 {[%emt 0:00:30]} exd4 {[%emt 0:10:30]} 7. Nxd4 {[%emt 0:00:30]} Bb4 {[%emt 0:09:30]} 8. O-O {[%emt 0:04:30]} Nge5 {[%emt 0:01:30]} 9. Be2 {[%emt 0:01:30]} d6 {[%emt 0:00:30]} 10. Be3 {[%emt 0:05:30]} Bxc3 {[%emt 0:01:30]} 11. bxc3 {[%emt 0:00:00]} Qh4 {[%emt 0:00:30]} 12. Nf5 {[%emt 0:05:00]} Bxf5 {[%emt 0:00:30]} 13. exf5 {[%emt 0:00:30]} Qe4 {[%emt 0:03:30]} 14. Rb1 {[%emt 0:00:30]} O-O-O {[%emt 0:00:30]} 15. Re1 {[%emt 0:08:30]} Rde8 {[%emt 0:13:30]} 16. Qc1 {[%emt 0:10:30]} Qxf5 {[%emt 0:02:30]} 17. Qb2 {[%emt 0:00:30]} Nd8 {[%emt 0:00:30]} 18. h3 {[%emt 0:07:30]} g5 {[%emt 0:02:30]} 19. Red1 {[%emt 0:05:30]} g4 {[%emt 0:04:30]} 20. hxg4 {[%emt 0:15:30]} Nxg4 {[%emt 0:00:00]} 21. Rd4 {[%emt 0:01:30]} Nxe3 {[%emt 0:00:00]} 22. fxe3 {[%emt 0:00:30]} Rhg8 {[%emt 0:01:30]} 23. Rf1 {[%emt 0:02:30]} Qg5 {[%emt 0:02:30]} 24. Bg4+ {[%emt 0:01:30]} Kb8 {[%emt 0:00:00]} 25. Qc1 {[%emt 0:03:30]} Rxe3 {[%emt 0:01:00]} 26. Rf5 {[%emt 0:00:30]} Qe7 {[%emt 0:00:30]} 27. Kf2 {[%emt 0:01:30]} Re8 {[%emt 0:01:30]} 28. Bf3 {[%emt 0:00:30]} Rxc3 {[%emt 0:00:30]} 29. Re4 {[%emt 0:01:30]} Qd7 {[%emt 0:00:30]} 30. Rxe8 {[%emt 0:00:30]} Qxe8 {[%emt 0:00:00]} 31. Qd2 {[%emt 0:00:30]} Ra3 {[%emt 0:01:00]} 32. Bd5 {[%emt 0:00:00]} Qb5 {[%emt 0:01:30]} 33. Qg5 {[%emt 0:01:00]} Qb6+ {[%emt 0:01:30]} 34. Ke2 {[%emt 0:00:30]} Ne6 {[%emt 0:00:30]} 35. Bxe6 {[%emt 0:01:52]} fxe6 {[%emt 0:01:30]} 36. Qg8+ {[%emt 0:00:03]} Ka7 {[%emt 0:00:00]} 37. Qxe6 {[%emt 0:00:04]} Qb1 {[%emt 0:01:00]} 38. Qc4 {[%emt 0:01:39]} Rxa2 {[%emt 0:00:30]} 39. Kd2 {[%emt 0:00:07]} Qb2 {[%emt 0:00:30]} 0-1

[Event "IM Marmaris Karia VIII 2019"]
[Site "Marmaris"]
[Date "2019.07.29"]
[Round "7.5"]
[White "Caputcuoglu, Zeki Berke"]
[Black "Maghalashvili, Davit"]
[Result "0-1"]
[ECO "A46"]
[WhiteElo "2010"]
[BlackElo "2485"]
[Annotator "ChessBase"]
[PlyCount "118"]
[EventDate "2019.07.29"]
[EventType "schev"]
[EventCountry "TUR"]
[SourceTitle "playchess.com"]
[Source "ChessBase"]
[SourceQuality "1"]
[TimeControl "5400+30"]

1. Nf3 {[%emt 0:00:30]} Nf6 {[%emt 0:00:30]} 2. d4 {[%emt 0:00:30]} d6 {[%emt 0:00:30]} 3. Nc3 {[%emt 0:00:30]} d5 {[%emt 0:02:30]} 4. Bf4 {[%emt 0:01:30]} c6 {[%emt 0:00:00]} 5. e3 {[%emt 0:01:30]} g6 {[%emt 0:00:00]} 6. h3 {[%emt 0:01:30]} Bg7 {[%emt 0:01:30]} 7. Bd3 {[%emt 0:02:30]} O-O {[%emt 0:01:30]} 8. O-O {[%emt 0:00:30]} c5 {[%emt 0:02:30]} 9. Ne5 {[%emt 0:06:30]} cxd4 {[%emt 0:00:30]} 10. exd4 {[%emt 0:00:30]} Qb6 {[%emt 0:00:30]} 11. Be2 {[%emt 0:07:30]} Nc6 {[%emt 0:03:30]} 12. Nxc6 {[%emt 0:01:30]} Qxc6 {[%emt 0:04:30]} 13. a4 {[%emt 0:04:30]} Bf5 {[%emt 0:01:30]} 14. Bb5 {[%emt 0:02:30]} Qc8 {[%emt 0:02:30]} 15. Re1 {[%emt 0:00:30]} Qd8 {[%emt 0:00:30]} 16. a5 {[%emt 0:00:30]} Rc8 {[%emt 0:00:30]} 17. a6 {[%emt 0:00:30]} b6 {[%emt 0:00:30]} 18. Qe2 {[%emt 0:10:30]} Ne4 {[%emt 0:10:30]} 19. Nxe4 {[%emt 0:00:30]} dxe4 {[%emt 0:03:30]} 20. c3 {[%emt 0:00:30]} h5 {[%emt 0:01:30]} 21. Rad1 {[%emt 0:01:30]} e6 {[%emt 0:02:30]} 22. Qe3 {[%emt 0:10:30]} Qe7 {[%emt 0:04:30]} 23. Bg5 {[%emt 0:14:30]} f6 {[%emt 0:03:30]} 24. Bf4 {[%emt 0:01:30]} g5 {[%emt 0:00:30]} 25. Bh2 {[%emt 0:00:30]} Rfd8 {[%emt 0:05:30]} 26. f3 {[%emt 0:02:30]} exf3 {[%emt 0:01:30]} 27. Qxf3 {[%emt 0:00:00]} Qf7 {[%emt 0:00:30]} 28. Qb7 {[%emt 0:07:00]} Bc2 {[%emt 0:01:30]} 29. Rd2 {[%emt 0:00:30]} Bb3 {[%emt 0:00:30]} 30. Bc6 {[%emt 0:01:30]} Bf8 {[%emt 0:06:30]} 31. Qxf7+ {[%emt 0:00:40]} Kxf7 {[%emt 0:00:30]} 32. Bb7 {[%emt 0:00:20]} Rc4 {[%emt 0:00:30]} 33. Rde2 {[%emt 0:00:30]} Ra4 {[%emt 0:01:30]} 34. Bc7 {[%emt 0:00:30]} Rd7 {[%emt 0:00:30]} 35. Bb8 {[%emt 0:02:05]} Bd5 {[%emt 0:01:30]} 36. Bh2 {[%emt 0:03:56]} Bxb7 {[%emt 0:01:30]} 37. axb7 {[%emt 0:00:01]} Rxb7 {[%emt 0:00:00]} 38. Rxe6 {[%emt 0:00:05]} Ra2 {[%emt 0:00:00]} 39. d5 {[%emt 0:03:30]} Rxb2 {[%emt 0:01:30]} 40. Rc6 {[%emt 0:00:45]} Bc5+ {[%emt 0:02:30]} 41. Kh1 {[%emt 0:00:05]} Re7 {[%emt 0:00:30]} 42. Rxe7+ {[%emt 0:03:39]} Kxe7 {[%emt 0:00:30]} 43. g4 {[%emt 0:00:01]} hxg4 {[%emt 0:01:30]} 44. hxg4 {[%emt 0:00:01]} a5 {[%emt 0:00:30]} 45. Rc7+ {[%emt 0:00:42]} Kd8 {[%emt 0:00:00]} 46. Ra7 {[%emt 0:00:19]} Rd2 {[%emt 0:00:00]} 47. c4 {[%emt 0:02:56]} Rd4 {[%emt 0:00:30]} 48. Bc7+ {[%emt 0:03:12]} Kc8 {[%emt 0:00:30]} 49. Bh2 {[%emt 0:01:03]} Rxc4 {[%emt 0:01:30]} 50. Rc7+ {[%emt 0:00:43]} Kd8 {[%emt 0:00:30]} 51. Rc6 {[%emt 0:00:10]} Rxg4 {[%emt 0:02:30]} 52. Rxf6 {[%emt 0:00:29]} a4 {[%emt 0:00:30]} 53. d6 {[%emt 0:02:53]} Rd4 {[%emt 0:01:30]} 54. Rf8+ {[%emt 0:00:26]} Kd7 {[%emt 0:00:00]} 55. Rf7+ {[%emt 0:00:36]} Ke8 {[%emt 0:00:00]} 56. Re7+ {[%emt 0:00:41]} Kd8 {[%emt 0:00:30]} 57. Ra7 {[%emt 0:01:21]} Bxd6 {[%emt 0:00:00]} 58. Bxd6 {[%emt 0:00:07]} Rxd6 {[%emt 0:00:00]} 59. Rxa4 {[%emt 0:00:04]} Kc7 {[%emt 0:00:30]} 0-1

[Event "IM Marmaris Karia VIII 2019"]
[Site "Marmaris"]
[Date "2019.07.30"]
[Round "8.1"]
[White "Sibashvili, Giorgi"]
[Black "Dedebas, Emre Emin"]
[Result "1-0"]
[ECO "D04"]
[WhiteElo "2389"]
[BlackElo "2301"]
[Annotator "NA"]
[PlyCount "103"]
[EventDate "2019.07.29"]
[EventType "schev"]
[EventCountry "TUR"]
[SourceTitle "playchess.com"]
[Source "ChessBase"]
[SourceQuality "1"]
[TimeControl "5400+30"]

1. d4 {[%emt 0:07:30]} d5 {[%emt 0:00:30]} 2. Nf3 {[%emt 0:02:30]} c5 {[%emt 0:00:30]} 3. e3 {[%emt 0:00:30]} Nf6 {[%emt 0:06:30]} 4. dxc5 {[%emt 0:19:30]} e6 {[%emt 0:02:30]} 5. b4 {[%emt 0:06:30]} a5 {[%emt 0:00:00]} 6. c3 {[%emt 0:00:30]} axb4 {[%emt 0:15:00]} 7. cxb4 {[%emt 0:01:30]} b6 {[%emt 0:00:30]} 8. a4 {[%emt 0:07:30]} bxc5 {[%emt 0:00:30]} 9. b5 {[%emt 0:00:30]} Bd6 {[%emt 0:00:30]} 10. Bb2 {[%emt 0:03:30]} O-O {[%emt 0:02:30]} 11. Be2 {[%emt 0:03:30]} Nbd7 {[%emt 0:03:30]} 12. Nbd2 {[%emt 0:00:30]} Bb7 {[%emt 0:01:30]} 13. O-O {[%emt 0:01:30]} Qc7 {[%emt 0:05:30]} 14. Qc2 {[%emt 0:12:30]} h6 {[%emt 0:27:30]} 15. Rfd1 {[%emt 0:08:30]} Rfe8 {[%emt 0:04:30]} 16. h3 {[%emt 0:00:30]} Bf8 {[%emt 0:05:30]} 17. Bf1 {[%emt 0:07:17]} Bd6 {[%emt 0:13:21]} 18. Bc3 {[%emt 0:02:37]} e5 {[%emt 0:01:30]} 19. e4 {[%emt 0:02:16]} d4 {[%emt 0:01:42]} 20. Bb2 {[%emt 0:00:09]} Ra5 {[%emt 0:00:13]} 21. Re1 {[%emt 0:03:22]} Nb6 {[%emt 0:00:28]} 22. Nc4 {[%emt 0:00:51]} Nxc4 {[%emt 0:03:55]} 23. Bxc4 {[%emt 0:00:02]} Nd7 {[%emt 0:01:44]} 24. Nd2 {[%emt 0:03:54]} Nb6 {[%emt 0:01:00]} 25. Bb3 {[%emt 0:00:11]} Qd7 {[%emt 0:01:03]} 26. Ra2 {[%emt 0:01:27]} Rea8 {[%emt 0:00:30]} 27. Rea1 {[%emt 0:00:14]} Qd8 {[%emt 0:00:26]} 28. Nc4 {[%emt 0:02:55]} Nxc4 {[%emt 0:00:09]} 29. Bxc4 {[%emt 0:00:02]} Bc7 {[%emt 0:00:15]} 30. Ra3 {[%emt 0:00:53]} Qh4 {[%emt 0:01:07]} 31. Re1 {[%emt 0:00:24]} Bb6 {[%emt 0:00:22]} 32. Rf3 {[%emt 0:01:10]} Rf8 {[%emt 0:00:19]} 33. Bc1 {[%emt 0:00:55]} Ra7 {[%emt 0:00:11]} 34. Qb3 {[%emt 0:00:44]} Bc8 {[%emt 0:01:11]} 35. Bd2 {[%emt 0:00:17]} Qd8 {[%emt 0:00:24]} 36. Rc1 {[%emt 0:00:48]} Qc7 {[%emt 0:00:37]} 37. Bd5 {[%emt 0:00:26]} Qd6 {[%emt 0:00:32]} 38. Qc4 {[%emt 0:00:31]} Qd8 {[%emt 0:00:20]} 39. a5 {[%emt 0:00:21]} Bxa5 {[%emt 0:00:26]} 40. Bxa5 {[%emt 0:00:01]} Qxa5 {[%emt 0:00:33]} 41. Qxc5 {[%emt 0:00:05]} Bb7 {[%emt 0:00:29]} 42. Bxb7 {[%emt 0:01:33]} Rxb7 {[%emt 0:00:04]} 43. Qxe5 {[%emt 0:00:07]} Qd2 {[%emt 0:01:03]} 44. Rb1 {[%emt 0:00:53]} Rd8 {[%emt 0:00:26]} 45. Rg3 {[%emt 0:00:21]} g6 {[%emt 0:00:33]} 46. Qf6 {[%emt 0:00:20]} Rbd7 {[%emt 0:00:35]} 47. b6 {[%emt 0:00:49]} Qc2 {[%emt 0:00:26]} 48. Rgb3 {[%emt 0:00:29]} d3 {[%emt 0:00:25]} 49. b7 {[%emt 0:00:14]} d2 {[%emt 0:00:34]} 50. b8=Q {[%emt 0:00:22]} d1=Q+ {[%emt 0:00:35]} 51. Rxd1 {[%emt 0:00:21]} Rxd1+ {[%emt 0:00:31]} 52. Kh2 {[%emt 0:00:05]} 1-0

[Event "IM Marmaris Karia VIII 2019"]
[Site "Marmaris"]
[Date "2019.07.30"]
[Round "8.3"]
[White "Rzayev, Bahruz"]
[Black "Karaoglan, Doruk"]
[Result "1/2-1/2"]
[ECO "B76"]
[WhiteElo "2340"]
[BlackElo "2278"]
[Annotator "NA"]
[PlyCount "60"]
[EventDate "2019.07.29"]
[EventType "schev"]
[EventCountry "TUR"]
[SourceTitle "playchess.com"]
[Source "ChessBase"]
[SourceQuality "1"]
[TimeControl "5400+30"]

1. e4 {[%emt 0:00:30]} c5 {[%emt 0:00:30]} 2. Nf3 {[%emt 0:00:00]} d6 {[%emt 0:00:00]} 3. d4 {[%emt 0:00:00]} cxd4 {[%emt 0:00:00]} 4. Nxd4 {[%emt 0:00:00]} Nf6 {[%emt 0:00:00]} 5. Nc3 {[%emt 0:00:00]} g6 {[%emt 0:00:00]} 6. Be3 {[%emt 0:00:30]} Bg7 {[%emt 0:00:30]} 7. f3 {[%emt 0:00:00]} O-O {[%emt 0:00:00]} 8. Qd2 {[%emt 0:00:00]} Nc6 {[%emt 0:00:00]} 9. O-O-O {[%emt 0:00:00]} d5 {[%emt 0:00:30]} 10. Nxc6 {[%emt 0:01:00]} bxc6 {[%emt 0:00:00]} 11. Bh6 {[%emt 0:00:00]} Bxh6 {[%emt 0:04:00]} 12. Qxh6 {[%emt 0:02:00]} Qc7 {[%emt 0:00:00]} 13. h4 {[%emt 0:02:30]} Rb8 {[%emt 0:14:00]} 14. h5 {[%emt 0:01:30]} Be6 {[%emt 0:19:30]} 15. g4 {[%emt 0:29:30]} d4 {[%emt 0:13:30]} 16. Na4 {[%emt 0:03:30]} Qa5 {[%emt 0:29:16]} 17. b3 {[%emt 0:06:30]} g5 {[%emt 0:06:27]} 18. Be2 {[%emt 0:06:30]} Rb4 {[%emt 0:05:30]} 19. Nb2 {[%emt 0:00:30]} Qxa2 {[%emt 0:00:30]} 20. Qxg5+ {[%emt 0:00:30]} Kh8 {[%emt 0:00:30]} 21. h6 {[%emt 0:00:30]} Rg8 {[%emt 0:00:30]} 22. Qc5 {[%emt 0:00:30]} Rgb8 {[%emt 0:01:46]} 23. Nd3 {[%emt 0:10:30]} Rc4 {[%emt 0:00:30]} 24. bxc4 {[%emt 0:00:30]} Qa1+ {[%emt 0:00:30]} 25. Kd2 {[%emt 0:00:30]} Qc3+ {[%emt 0:00:30]} 26. Kc1 {[%emt 0:00:30]} Qa1+ {[%emt 0:00:30]} 27. Kd2 {[%emt 0:00:30]} Qc3+ {[%emt 0:00:30]} 28. Kc1 {[%emt 0:00:30]} Qa1+ {[%emt 0:01:34]} 29. Kd2 {[%emt 0:00:30]} Qc3+ {[%emt 0:00:03]} 30. Kc1 {[%emt 0:00:30]} Bxc4 {[%emt 0:00:30]} 1/2-1/2

[Event "IM Marmaris Karia VIII 2019"]
[Site "Marmaris"]
[Date "2019.07.30"]
[Round "8.4"]
[White "Maghalashvili, Davit"]
[Black "Yazici, Ugur Doga"]
[Result "1-0"]
[ECO "D30"]
[WhiteElo "2485"]
[BlackElo "2143"]
[Annotator "ChessBase"]
[PlyCount "89"]
[EventDate "2019.07.29"]
[EventType "schev"]
[EventCountry "TUR"]
[SourceTitle "playchess.com"]
[Source "ChessBase"]
[SourceQuality "1"]
[TimeControl "5400+30"]

1. Nf3 {[%emt 0:00:30]} Nf6 {[%emt 0:00:30]} 2. g3 {[%emt 0:00:00]} d5 {[%emt 0:00:00]} 3. Bg2 {[%emt 0:00:00]} e6 {[%emt 0:00:00]} 4. O-O {[%emt 0:00:00]} Be7 {[%emt 0:00:30]} 5. c4 {[%emt 0:00:00]} O-O {[%emt 0:00:30]} 6. b3 {[%emt 0:00:30]} c5 {[%emt 0:00:30]} 7. cxd5 {[%emt 0:00:30]} exd5 {[%emt 0:01:30]} 8. d4 {[%emt 0:00:00]} Nc6 {[%emt 0:00:30]} 9. dxc5 {[%emt 0:01:00]} Ne4 {[%emt 0:01:30]} 10. Bb2 {[%emt 0:01:30]} Bxc5 {[%emt 0:01:30]} 11. Nc3 {[%emt 0:00:00]} Nxc3 {[%emt 0:01:30]} 12. Bxc3 {[%emt 0:00:00]} d4 {[%emt 0:04:30]} 13. Bb2 {[%emt 0:00:30]} Qb6 {[%emt 0:05:30]} 14. Rc1 {[%emt 0:01:30]} Rd8 {[%emt 0:02:30]} 15. Qc2 {[%emt 0:03:30]} Be7 {[%emt 0:01:30]} 16. Rfd1 {[%emt 0:00:30]} Be6 {[%emt 0:02:30]} 17. Qe4 {[%emt 0:08:30]} Bf6 {[%emt 0:01:30]} 18. Rd2 {[%emt 0:03:30]} Rd7 {[%emt 0:18:30]} 19. h4 {[%emt 0:01:30]} h6 {[%emt 0:00:30]} 20. Qf4 {[%emt 0:04:30]} Rad8 {[%emt 0:04:30]} 21. Rcd1 {[%emt 0:00:30]} Qa5 {[%emt 0:03:30]} 22. Nxd4 {[%emt 0:04:30]} Nxd4 {[%emt 0:01:30]} 23. Bxd4 {[%emt 0:00:30]} Bxd4 {[%emt 0:00:30]} 24. Rxd4 {[%emt 0:00:00]} Rxd4 {[%emt 0:00:30]} 25. Rxd4 {[%emt 0:00:00]} Rxd4 {[%emt 0:00:30]} 26. Qxd4 {[%emt 0:00:30]} Qxa2 {[%emt 0:00:30]} 27. Qd8+ {[%emt 0:00:30]} Kh7 {[%emt 0:00:30]} 28. Be4+ {[%emt 0:00:30]} f5 {[%emt 0:02:30]} 29. Qd3 {[%emt 0:07:30]} g6 {[%emt 0:02:30]} 30. Bd5 {[%emt 0:03:30]} Qa1+ {[%emt 0:00:30]} 31. Kg2 {[%emt 0:00:30]} Bxd5+ {[%emt 0:00:30]} 32. Qxd5 {[%emt 0:00:30]} Qa6 {[%emt 0:00:00]} 33. Qf7+ {[%emt 0:00:30]} Kh8 {[%emt 0:00:00]} 34. h5 {[%emt 0:00:30]} gxh5 {[%emt 0:02:30]} 35. Qf8+ {[%emt 0:01:30]} Kh7 {[%emt 0:00:00]} 36. Qxf5+ {[%emt 0:00:30]} Kg7 {[%emt 0:01:00]} 37. Qxh5 {[%emt 0:00:30]} b5 {[%emt 0:01:30]} 38. Qe5+ {[%emt 0:01:30]} Kf7 {[%emt 0:00:30]} 39. Qf5+ {[%emt 0:00:30]} Kg7 {[%emt 0:00:30]} 40. Qd7+ {[%emt 0:00:30]} Kf6 {[%emt 0:01:30]} 41. e4 {[%emt 0:00:30]} Qb6 {[%emt 0:05:30]} 42. Qh7 {[%emt 0:02:30]} Ke5 {[%emt 0:00:30]} 43. Qf5+ {[%emt 0:00:30]} Kd4 {[%emt 0:00:30]} 44. Qd5+ {[%emt 0:00:00]} Kc3 {[%emt 0:00:00]} 45. e5 {[%emt 0:00:00]} 1-0

[Event "IM Marmaris Karia VIII 2019"]
[Site "Marmaris"]
[Date "2019.07.30"]
[Round "8.5"]
[White "Benidze, Davit"]
[Black "Caputcuoglu, Zeki Berke"]
[Result "1-0"]
[ECO "E69"]
[WhiteElo "2469"]
[BlackElo "2010"]
[Annotator "ChessBase"]
[PlyCount "191"]
[EventDate "2019.07.29"]
[EventType "schev"]
[EventCountry "TUR"]
[SourceTitle "playchess.com"]
[Source "ChessBase"]
[SourceQuality "1"]
[TimeControl "5400+30"]

1. Nf3 {[%emt 0:00:30]} Nf6 {[%emt 0:00:30]} 2. g3 {[%emt 0:00:00]} g6 {[%emt 0:00:00]} 3. Bg2 {[%emt 0:00:00]} Bg7 {[%emt 0:00:00]} 4. O-O {[%emt 0:00:00]} O-O {[%emt 0:00:30]} 5. c4 {[%emt 0:00:00]} d6 {[%emt 0:00:00]} 6. d4 {[%emt 0:00:00]} c6 {[%emt 0:00:00]} 7. Nc3 {[%emt 0:00:00]} Qa5 {[%emt 0:00:00]} 8. h3 {[%emt 0:00:00]} e5 {[%emt 0:00:00]} 9. e4 {[%emt 0:01:00]} Nbd7 {[%emt 0:00:30]} 10. Be3 {[%emt 0:00:30]} Nb6 {[%emt 0:00:00]} 11. c5 {[%emt 0:11:30]} exd4 {[%emt 0:00:00]} 12. Nxd4 {[%emt 0:01:30]} Nc4 {[%emt 0:00:30]} 13. Nb3 {[%emt 0:02:30]} Nxe3 {[%emt 0:00:30]} 14. Nxa5 {[%emt 0:00:30]} Nxd1 {[%emt 0:00:00]} 15. Raxd1 {[%emt 0:00:00]} dxc5 {[%emt 0:01:00]} 16. e5 {[%emt 0:00:00]} Ne8 {[%emt 0:01:30]} 17. Rfe1 {[%emt 0:00:30]} Nc7 {[%emt 0:07:30]} 18. Na4 {[%emt 0:04:30]} Ne6 {[%emt 0:03:30]} 19. Nb3 {[%emt 0:00:30]} b6 {[%emt 0:22:30]} 20. Bxc6 {[%emt 0:01:30]} Rb8 {[%emt 0:00:00]} 21. Nc3 {[%emt 0:03:30]} Bb7 {[%emt 0:01:00]} 22. Bxb7 {[%emt 0:01:30]} Rxb7 {[%emt 0:00:30]} 23. f4 {[%emt 0:00:30]} Rd8 {[%emt 0:03:30]} 24. Rxd8+ {[%emt 0:01:30]} Nxd8 {[%emt 0:00:00]} 25. Rd1 {[%emt 0:00:00]} Ne6 {[%emt 0:00:00]} 26. Ne4 {[%emt 0:00:00]} Kf8 {[%emt 0:01:30]} 27. Rd6 {[%emt 0:16:30]} Ke7 {[%emt 0:09:30]} 28. Nbd2 {[%emt 0:00:00]} f6 {[%emt 0:05:30]} 29. Nc4 {[%emt 0:00:00]} fxe5 {[%emt 0:03:30]} 30. Nxe5 {[%emt 0:01:30]} Bxe5 {[%emt 0:01:30]} 31. fxe5 {[%emt 0:00:30]} Rd7 {[%emt 0:06:30]} 32. Rxd7+ {[%emt 0:08:30]} Kxd7 {[%emt 0:00:30]} 33. Nf6+ {[%emt 0:00:00]} Kc6 {[%emt 0:00:30]} 34. Kf2 {[%emt 0:00:00]} h5 {[%emt 0:02:30]} 35. Ke3 {[%emt 0:00:00]} b5 {[%emt 0:01:30]} 36. Ng8 {[%emt 0:00:00]} Kd5 {[%emt 0:03:30]} 37. Ne7+ {[%emt 0:00:30]} Kxe5 {[%emt 0:00:00]} 38. Nxg6+ {[%emt 0:00:00]} Kd5 {[%emt 0:09:00]} 39. Ne7+ {[%emt 0:00:00]} Kc4 {[%emt 0:00:30]} 40. g4 {[%emt 0:00:30]} hxg4 {[%emt 0:00:30]} 41. hxg4 {[%emt 0:00:30]} a5 {[%emt 0:00:30]} 42. Ke4 {[%emt 0:00:30]} a4 {[%emt 0:00:30]} 43. Nc6 {[%emt 0:00:30]} a3 {[%emt 0:00:30]} 44. bxa3 {[%emt 0:00:30]} Ng5+ {[%emt 0:09:19]} 45. Kf5 {[%emt 0:00:30]} Nf3 {[%emt 0:01:05]} 46. Ne5+ {[%emt 0:21:30]} Nxe5 {[%emt 0:00:09]} 47. Kxe5 {[%emt 0:00:00]} Kd3 {[%emt 0:01:12]} 48. g5 {[%emt 0:01:00]} c4 {[%emt 0:00:01]} 49. g6 {[%emt 0:00:30]} c3 {[%emt 0:00:04]} 50. g7 {[%emt 0:00:00]} c2 {[%emt 0:00:04]} 51. g8=Q {[%emt 0:00:00]} c1=Q {[%emt 0:00:04]} 52. Qd5+ {[%emt 0:00:30]} Kc2 {[%emt 0:05:24]} 53. Qb3+ {[%emt 0:00:30]} Kd2 {[%emt 0:00:11]} 54. Kd4 {[%emt 0:01:30]} Qg1+ {[%emt 0:02:29]} 55. Kd5 {[%emt 0:00:30]} Qc1 {[%emt 0:01:10]} 56. a4 {[%emt 0:05:30]} bxa4 {[%emt 0:00:13]} 57. Qxa4 {[%emt 0:00:30]} Qh1+ {[%emt 0:00:06]} 58. Kc5 {[%emt 0:00:30]} Qh5+ {[%emt 0:00:42]} 59. Kb6 {[%emt 0:00:00]} Qh6+ {[%emt 0:01:05]} 60. Qc6 {[%emt 0:01:00]} Qe3+ {[%emt 0:00:40]} 61. Qc5 {[%emt 0:00:30]} Qe6+ {[%emt 0:00:26]} 62. Kb5 {[%emt 0:00:30]} Qd7+ {[%emt 0:00:47]} 63. Ka5 {[%emt 0:00:30]} Qd8+ {[%emt 0:00:45]} 64. Kb4 {[%emt 0:00:30]} Qb8+ {[%emt 0:00:38]} 65. Kc4 {[%emt 0:00:00]} Qe8 {[%emt 0:02:24]} 66. a3 {[%emt 0:00:00]} Qe2+ {[%emt 0:00:52]} 67. Kb4 {[%emt 0:01:30]} Qe4+ {[%emt 0:00:24]} 68. Ka5 {[%emt 0:00:30]} Qa8+ {[%emt 0:00:23]} 69. Kb5 {[%emt 0:00:00]} Qb7+ {[%emt 0:00:27]} 70. Kc4 {[%emt 0:00:00]} Qa6+ {[%emt 0:00:20]} 71. Kb3 {[%emt 0:00:30]} Qe6+ {[%emt 0:00:30]} 72. Qc4 {[%emt 0:00:00]} Qe3+ {[%emt 0:00:12]} 73. Ka2 {[%emt 0:01:00]} Qc3 {[%emt 0:00:30]} 74. Qe4 {[%emt 0:00:30]} Kc1 {[%emt 0:00:41]} 75. Qb1+ {[%emt 0:00:30]} Kd2 {[%emt 0:00:14]} 76. Qb3 {[%emt 0:00:30]} Qc7 {[%emt 0:01:02]} 77. a4 {[%emt 0:00:00]} Qc5 {[%emt 0:00:23]} 78. Qb5 {[%emt 0:00:00]} Qc7 {[%emt 0:00:37]} 79. a5 {[%emt 0:00:30]} Kc3 {[%emt 0:01:22]} 80. Qb3+ {[%emt 0:01:30]} Kd2 {[%emt 0:00:26]} 81. Qb4+ {[%emt 0:00:30]} Kc1 {[%emt 0:00:39]} 82. Qb2+ {[%emt 0:00:30]} Kd1 {[%emt 0:00:07]} 83. Qb6 {[%emt 0:00:00]} Qc2+ {[%emt 0:00:11]} 84. Ka3 {[%emt 0:00:00]} Qc1+ {[%emt 0:00:13]} 85. Kb4 {[%emt 0:00:30]} Qb2+ {[%emt 0:00:21]} 86. Ka4 {[%emt 0:00:00]} Qa2+ {[%emt 0:00:47]} 87. Kb5 {[%emt 0:00:00]} Qd5+ {[%emt 0:00:04]} 88. Qc5 {[%emt 0:00:30]} Qb7+ {[%emt 0:00:04]} 89. Kc4 {[%emt 0:00:00]} Qa6+ {[%emt 0:00:07]} 90. Kc3 {[%emt 0:00:00]} Qe6 {[%emt 0:01:48]} 91. Qd4+ {[%emt 0:00:30]} Ke1 {[%emt 0:00:13]} 92. Qh4+ {[%emt 0:00:00]} Kd1 {[%emt 0:00:45]} 93. Qa4+ {[%emt 0:01:00]} Ke1 {[%emt 0:00:22]} 94. Qb4 {[%emt 0:00:30]} Qa6 {[%emt 0:00:41]} 95. Qh4+ {[%emt 0:00:30]} Kd1 {[%emt 0:00:16]} 96. Qd4+ {[%emt 0:00:00]} 1-0